Cogmind - Beta 16 @@@ ROGUE MODE // 2025.12.20 @ 23:24:24 Player: aloola Result: Destroyed by D-53 Grenadier with Mini Grenade Launcher Performance ------------- Evolutions (0) 0 Regions Visited (2) 400 Robots Destroyed (24) 120 Value Destroyed (304) 304 Prototype IDs (4) 80 Alien Tech Used (0) 0 Bonus (0) 0 TOTAL SCORE: 904 Bonus ------- None Cogmind --------- Core Integrity 0/250 Matter 300/300 Energy 100/100 System Corruption 0% Temperature Cool (0) Movement Core (250) Ox4 Location -10/Mines Parts ------- > --- POWER (1) -------- (None) > --- PROPULSION (2) --- (None) > --- UTILITY (2) ------ Medium Storage Unit Seismic Detector > --- WEAPON (2) ------- Medium Laser > --- INVENTORY (10) --- Ion Engine Wheel Heat Sink Medium Laser Medium Laser Medium Laser Medium Laser Assault Rifle Mining Laser Peak State ------------ > --- POWER ------------ Ion Engine > --- PROPULSION ------- Light Treads Light Treads > --- UTILITY ---------- Medium Storage Unit Seismic Detector > --- WEAPON ----------- Medium Laser Medium Laser > --- INVENTORY -------- Ion Engine Light Treads Wheel Wheel Wheel Wheel Heat Sink Small Laser Small Laser Mining Laser [Rating: 8] Favorites ----------- Power Ion Engine Engine Ion Engine Propulsion Light Treads Treads Light Treads Utility Seismic Detector Device Seismic Detector Storage Medium Storage Unit Weapon Medium Laser Energy Gun Medium Laser Build | -11 -10 -10 ------- Run | Yrd Mat Min Slots Evolved . | . . . Power . | . . . Propulsion . | . . . Utility . | . . . Weapon . | . . . Parts Attached 15 | 7 7 1 Power 2 | 1 1 . Engine 2 | 1 1 . Core . | . . . Reactor . | . . . Propulsion 3 | 2 . 1 Treads 3 | 2 . 1 Leg . | . . . Wheel . | . . . Hover . | . . . Flight . | . . . Utility 5 | 2 3 . Device 3 | 1 2 . Storage 2 | 1 1 . Processor . | . . . Hackware . | . . . Protection . | . . . Artifact . | . . . Weapon 5 | 2 3 . Energy Gun 5 | 2 3 . Energy Cannon . | . . . Ballistic Gun . | . . . Ballistic Cannon . | . . . Launcher . | . . . Special Weapon . | . . . Impact Weapon . | . . . Slashing Weapon . | . . . Piercing Weapon . | . . . Special Melee Weapon . | . . . Unidentified Prototypes . | . . . Parts Lost 5 | . . 5 Power 1 | . . 1 Propulsion 3 | . . 3 Utility . | . . . Weapon 1 | . . 1 Highest Loss Streak 5 | . . 5 To Critical Strikes . | . . . Average Backups 6 | 2 8 9 Power . | . 1 1 Propulsion 2 | . 4 1 Utility . | . . 1 Weapon 2 | 1 2 6 Tool/Special . | . . . Unused Backups 15 | . 7 8 Power 2 | . 1 1 Propulsion 5 | . 4 1 Utility . | . . . Weapon 8 | . 2 6 Tool/Special . | . . . Average Slot Usage (%) 100 | . 100 100 Engine 14 | . 14 14 Treads 28 | . 28 28 Device 14 | . 14 14 Storage 14 | . 14 14 Energy Gun 28 | . 28 28 Peak Build Rating 8 | 7 8 8 Average Rating 7 | 6 7 7 On Entrance 5 | . 7 8 Avg Prop Armor Cover (%) . | . . . Naked Turns . | . . . Heaviest Build 20 | 15 20 20 Greatest Support 40 | 40 40 40 Greatest Overweight (x) 4 | . . 4 Average Overweight (x) . | . . . Largest Inventory Capacity 10 | 8 10 10 Average Capacity 9 | 7 9 10 Most Carried 10 | 8 10 10 Average Carried 6 | 2 8 9 Final Capacity 10 | 8 10 10 Final Carried 10 | 8 10 9 Class Distribution -------------------- 100% | Mutant Dominant Class ---------------- Mutant | -10/Materials Mutant | -10/Mines Resources | -11 -10 -10 ----------- Run | Yrd Mat Min Matter Collected 353 | 266 87 . Remotely . | . . . Salvage Created 573 | 253 320 . Parts 42 | 27 15 . Haulers Intercepted 1 | . 1 . Recyclers Shooed 1 | . 1 . Parts Field Recycled . | . . . Retrieved Matter . | . . . Parts Self-Destructed . | . . . Prevented . | . . . Parts Restored . | . . . Kills | -11 -10 -10 ------- Run | Yrd Mat Min Combat Hostiles Destroyed 8 | . 8 . Guns 6 | . 6 . Classes Destroyed 7 | 3 4 . Worker 4 | 4 . . Tunneler 9 | 9 . . Hauler 1 | . 1 . Recycler 1 | 1 . . Operator 1 | . 1 . Swarmer 3 | . 3 . Grunt 5 | . 5 . Best Kill Streak 3 | 3 3 . Combat Bots Only 3 | . 3 . Max Kills in Single Turn 2 | 2 1 . Gunslinging . | . . . Exploded . | . . . Melee . | . . . Uniques/NPCs Destroyed . | . . . Combat | -11 -10 -10 -------- Run | Yrd Mat Min Hostile Shots Fired 81 | . 45 36 Missed 17 | . 10 7 Hits 64 | . 35 29 Melee 1 | . . 1 Projectile 63 | . 35 28 AOE 13 | . . 13 Part Disruptions 1 | . . 1 Damage Taken 1082 | . 366 716 Core 261 | . 80 181 Absorbed by Shields . | . . . Core Remaining (%) 100 | 100 . . Volleys Fired 56 | 17 37 2 Largest 2 | 2 2 2 Hottest 100 | 100 100 100 Shots Fired 112 | 34 74 4 Gun 112 | 34 74 4 Cannon . | . . . Launcher . | . . . Special . | . . . Kinetic . | . . . Thermal 112 | 34 74 4 Explosive . | . . . Electromagnetic . | . . . Robot Hit Streak 8 | 8 7 1 Robot Miss Streak 2 | 2 2 2 Penetration Max . | . . . Secondary Targets 1 | . 1 . Max Gunslinging Chain 1 | . 1 . Shots Hit Robots 67 | 19 47 1 Core Hits 31 | 14 17 . Critical Kills . | . . . Critical Parts Destroyed . | . . . Critical Strikes 8 | . 8 . Burn 8 | . 8 . Melee Attacks . | . . . Impact . | . . . Slashing . | . . . Piercing . | . . . Sneak Attacks . | . . . Combat Hostiles . | . . . Follow-up Attacks . | . . . Damage Inflicted 994 | 358 624 12 Guns 844 | 251 581 12 Cannons . | . . . Explosions . | . . . Melee . | . . . Ramming 150 | 107 43 . Kinetic . | . . . Thermal 844 | 251 581 12 Explosive . | . . . Electromagnetic . | . . . Impact . | . . . Slashing . | . . . Piercing . | . . . Highest Corruption . | . . . Average Corruption . | . . . Corruption Purged . | . . . Corruption Blocked . | . . . Overload Shots . | . . . Overflow Damage . | . . . Projectiles . | . . . Explosions . | . . . Melee . | . . . Knockbacks 1 | 1 . . Impact 1 | 1 . . Kinetic . | . . . Secondary . | . . . Self-Inflicted Damage . | . . . Shots . | . . . Rammed 38 | 26 12 . Targets Rammed 43 | 31 12 . Kicked . | . . . Crushed 5 | 5 . . Highest Temperature 369 | 156 369 111 Average Temperature 98 | 57 121 61 Received Heat Transfer 268 | . 165 103 Effects 3 | . 3 . Energy Bleed 1 | . 1 . Matter Decay 1 | . 1 . Short Circuit 1 | . 1 . Siege Activations . | . . . Martial Activations . | . . . Shielding Activations . | . . . Robots Disrupted . | . . . Combat Hostiles . | . . . Robots Corrupted . | . . . Combat Hostiles . | . . . Parts Fried . | . . . Impact Corruptions 1 | 1 . . Robots Melted 2 | . 2 . Combat Hostiles 2 | . 2 . Parts Melted 6 | . 6 . Heat Transferred 3108 | 740 2331 37 Parts Sabotaged . | . . . Parts Stolen . | . . . Parts Stripped . | . . . Power Chain Reactions . | . . . Alert | -11 -10 -10 ------- Run | Yrd Mat Min Maximum Alert Level . | . . . Low Security (%) 100 | 100 100 100 Level 1 . | . . . Level 2 . | . . . Level 3 . | . . . Level 4 . | . . . Level 5 . | . . . High Security . | . . . Max Security . | . . . Peak Influence 80 | 15 80 4 Initial 4 | . . 4 Average 10 | 1 17 1 Influence Increases 323 | 70 253 . Destroy 0b10 Robot/C 160 | . 160 . Destroy 0b10 Robot/NC 80 | 70 10 . Destroy Leader 42 | . 42 . Successful Hack 40 | . 40 . Destroy Structure 1 | . 1 . Influence Decreases 323 | 70 241 12 Entered New Map 8 | . . 8 Time Decay 315 | 70 241 4 Squads Dispatched 2 | . 2 . Investigation . | . . . Extermination . | . . . Reinforcement 2 | . 2 . Assault . | . . . Garrison . | . . . Intercept . | . . . Searches Triggered . | . . . Construction Impeded . | . . . Haulers Reinforced . | . . . Active Scanning Responses . | . . . Cargo Convoy Interrupts . | . . . Stealth | -11 -10 -10 --------- Run | Yrd Mat Min Distress Signals 1 | . 1 . Communications Jammed . | . . . Distress Signals . | . . . Times Spotted 22 | . 14 8 Peak Tracking Total 6 | . 3 6 Tactical Retreats . | . . . Traps | -11 -10 -10 ------- Run | Yrd Mat Min Traps Triggered . | . . . Indirectly . | . . . Trap Hack Attempts . | . . . Triggered . | . . . Disarmed . | . . . Reprogrammed . | . . . Reused . | . . . Traps Extracted . | . . . Installed . | . . . Triggered . | . . . Machines | -11 -10 -10 ---------- Run | Yrd Mat Min Machines Disabled . | . . . Max in Single Turn . | . . . Machines Repaired . | . . . Machines Dismantled . | . . . Machines Sabotaged . | . . . Overloaded Fab Kills . | . . . Hacking | -11 -10 -10 --------- Run | Yrd Mat Min Machines Accessed 8 | . 8 . Terminals 6 | . 6 . Fabricators . | . . . Repair Stations 1 | . 1 . Recycling Units 1 | . 1 . Scanalyzers . | . . . Garrison Access . | . . . Total Hacks 17 | . 17 . Successful 12 | . 12 . Failed 5 | . 5 . Catastrophic 1 | . 1 . Database Lockouts . | . . . Manual 8 | . 8 . Terminals 14 | . 14 . Fabricators . | . . . Repair Stations 1 | . 1 . Recycling Units 2 | . 2 . Scanalyzers . | . . . Garrison Access . | . . . Terminal Hacks 8 | . 8 . Part Schematic 1 | . 1 . Prototype ID Bank 3 | . 3 . Branch Access Points 1 | . 1 . Locate Traps 1 | . 1 . Surveillance Status 1 | . 1 . Registered Components 1 | . 1 . Fabricator Hacks . | . . . Repair Station Hacks 1 | . 1 . Scan Component 1 | . 1 . Recycling Unit Hacks 1 | . 1 . Report Inventory 1 | . 1 . Scanalyzer . | . . . Garrison Access Hacks . | . . . Unauthorized Hacks 2 | . 2 . Terminals 1 | . 1 . Botnet 1 | . 1 . Fabricators . | . . . Repair Stations . | . . . Recycling Units 1 | . 1 . Recyclers 1 | . 1 . Scanalyzers . | . . . Garrison Access . | . . . Data Cores Recovered . | . . . Used . | . . . Hacking Detections 6 | . 6 . Full Trace Events . | . . . Feedback Events . | . . . Feedback Blocked . | . . . Robot Schematics Acquired . | . . . Robots Built . | . . . Authchips . | . . . Time . | . . . Total Robot Build Rating . | . . . Part Schematics Acquired 1 | . 1 . Parts Built . | . . . Authchips . | . . . Time . | . . . Total Part Build Rating . | . . . Part Studies Acquired . | . . . Parts Repaired . | . . . Time . | . . . Parts Recycled . | . . . Recycled Matter . | . . . Retrieved Matter . | . . . Retrieved Components . | . . . Parts Scanalyzed . | . . . Part Schematics Acquired . | . . . Parts Damaged . | . . . Bothacking | -11 -10 -10 ------------ Run | Yrd Mat Min Used RIF Installer . | . . . Robots Hacked . | . . . Non-combat . | . . . Combat . | . . . Robot Hacks Applied . | . . . Relay Couplers Released . | . . . Fabnet Peak Effective % . | . . . Robots Rewired . | . . . Allies Hacked . | . . . Hacks Repelled . | . . . Allies | -11 -10 -10 -------- Run | Yrd Mat Min Total Allies . | . . . Largest Group . | . . . Highest-Rated Group . | . . . Highest-Rated Ally . | . . . Total Orders . | . . . Ally Attacks . | . . . Total Damage . | . . . Kills . | . . . Allies Corrupted . | . . . Allies Melted . | . . . Intel | -11 -10 -10 ------- Run | Yrd Mat Min Active Infowar (turns) 1402 | 507 838 57 Seismic 1402 | 507 838 57 Robot Analysis Total . | . . . Derelict Logs Recovered 1 | . . 1 Drone Launches . | . . . Drone Recoveries . | . . . Exploration | -11 -10 -10 ------------- Run | Yrd Mat Min Turns Passed 1877 | 762 1058 57 Spaces Moved 964 | 393 540 31 Core 6 | 4 . 2 Treads 958 | 389 540 29 Legs . | . . . Wheels . | . . . Hover . | . . . Flight . | . . . Fastest Speed 50 | 50 160 160 Average Speed 159 | 158 160 165 Slowest Speed 250 | 160 160 250 Overloaded Moves . | . . . Propulsion Burnouts . | . . . Robots Hopped . | . . . Potential Cave-ins . | . . . Cave-ins Triggered . | . . . Exploration Rate (%) 31 | 11 70 14 Regions Visited 2 Branch Regions 1 Pre-discovered Areas . | . . . Known Exits Taken 1 | . 1 . Unknown Exits Taken 1 | 1 . . Scrap Searched . | . . . Spaces Dug . | . . . Terrain Destroyed . | . . . Melee . | . . . Projectile . | . . . AOE . | . . . Terrain Rammed . | . . . Walls Destroyed . | . . . Machines Disabled . | . . . Actions | -11 -10 -10 --------- Run | Yrd Mat Min Total 1170 | 475 661 34 Wait 62 | 20 42 . Move 962 | 392 539 31 Hop . | . . . Pick Up 17 | 8 9 . Fast Attach 8 | 7 1 . Attach 1 | . . 1 Detach 1 | . 1 . Swap 7 | . 7 . Drop 13 | . 13 . Fire 56 | 17 37 2 Melee . | . . . Ram . | . . . Kick . | . . . Crush 43 | 31 12 . Escape Stasis . | . . . Rewire . | . . . Trap . | . . . Miscellaneous . | . . . Route ------- -11/Scrapyard -10/Materials (discovered 3 exits: [*Mat] / *Min / [*Sub]) -10/Mines History --------- Turn | Location | Event 8 | -11/Scrapyard | Discovered new exit (range 15) 763 | -11/Scrapyard | Entered Materials 764 | -10/Materials | Build established: Mutant 1019 | -10/Materials | Discovered new exit (range 6) 1435 | -10/Materials | Discovered new exit (range 6) 1676 | -10/Materials | Identified exit to Mines 1688 | -10/Materials | Discovered new exit (range 9) 1821 | -10/Materials | Entered Mines 1822 | -10/Mines | Assembled infested the area 1827 | -10/Mines | Assisted by a Guerilla fighting off Assembled 1835 | -10/Mines | Learned location of 1 exit from Materials 1860 | -10/Mines | Core integrity fell below 50% 1877 | -10/Mines | Core integrity fell below 20% 1878 | -10/Mines | Destroyed by D-53 Grenadier with Mini Grenade Launcher Last Messages --------------- 01835_ Acquired derelict log, extracted data. Data stored: Materials exits (x1). 01859_ C-45 Heavy ARC bursts open, deploying its payload. 01859_ D-53 Grenadier unfolds itself. 01859_ Lgt. Treads destroyed. 01867_ The unstable cave ceiling collapses. 01871_ U-05 Engineer lays Concrete. 01872_ Ion Engine destroyed. 01872_ U-05 Engineer lays Concrete. 01873_ Lgt. Treads destroyed. 01873_ U-05 Engineer lays Concrete. 01874_ The unstable cave ceiling collapses. 01874_ as-18589 destroyed. 01875_ U-05 Engineer lays Concrete. 01876_ Lgt. Treads destroyed. 01876_ U-05 Engineer lays Concrete. 01876_ Med. Laser destroyed. 01876_ U-05 Engineer lays Concrete. 01878_ The unstable cave ceiling collapses. 01878_ U-05 Engineer lays Concrete. Map ----- +----------------------------------------------------+ | ?????????????????????????????????????????? | | ?????????????????????????????????????????? | | ?????????????????????????????????????????? | | ?????????????????????????????????????????? | | ?????????????????????????????????????????? | | ?????????????????????????????????????????? | | ?????????????????????????????????????????? | | ?????????????????????????????????????????? | | ?????????????????????????????????????????? | | ?????????????????????????????????????????? | | ???????????????? ????####???????????????? | | ???????????????? ???? #???????????????? | | ???????????????? ????# #???????????????? | | ???????????????# ????# #???????????????? | | ???????????????# ????# #???????????????? | | ???????????????# ????# #???????????????? | | ???????????????# ????# #???????????????? | | ???????????????# #??## ###?????????????? | | ???????????????# #?## ###????? #???? | | ???????????????# ### #### #???? | | ???????????????# ## u "%" ##??? | | ?????????????### # u " | | ????????????## | | ????????????# d #??? | | ????????????# d #####??? | | ????????????# @ # ###??????? | | ????????????# # #??##????????? | | ????????????# # #????????????? | | ????????????## #####?#????????????? | | ?????????????# #?????????????????? | | ?????????????# ##?????????????????? | | ?????????????## a #??????????????????? | | ??????????????# # ##??????????????????? | | ??????????????##a # #???????????????????? | | ???????????????# # #???????????????????? | | ???????????????# ##??????????????????? | | ?????????????###a! #??????????????????? | | ??????????##"# % #??????????????????? | | ???????# =%% ##??????????????????? | | ???????# #### %= ##???????????????????? | | ????????????# = ##????????????????????? | | ????????????## ##?????????????????????? | | ?????????????"#% #???????????????????????? | | ???????????? ## ????????????????????????? | | ???????????##?# ????????????????????????? | | ??????????????# ????????????????????????? | | ??????????????# ?????????????????????????? | | ??????????????# ?????????????????????????? | | ??????????????#??????????????????????????? | | ?????????????????????????????????????????? | +----------------------------------------------------+ Best States ------------- Heat Dissipation 35 Energy Generation 10 Energy Capacity 250 Matter Stores 300 Matter Capacity 300 Sight Range 16 Terrain Scan Density 10 Evasion (%) 40 Recoil Reduction 2 Item Schematics ----------------- Hcp. Storage Unit | -10/Materials | Hacked Robot Schematics ------------------ None Fabricated ------------ Nothing Repaired ---------- Nothing Studied --------- None Alien Tech Used ----------------- None Achievements -------------- None Challenges ------------ None Game ------ Seed WarlordScrapoidTearclaws Manual? 0 Play Time 00:14:08 Cumulative 151.7 hours Start 2025.12.20 @ 23:11:11 End 2025.12.20 @ 23:24:24 Sessions 1 Manual Loads 0 Difficulty Rogue Special Mode None Game No. 66 Rogue 66 Adventurer 0 Explorer 0 Win Type - Total 10 Types 10/0/0/0/0/0/0/0/0/0 Lore% 69 Gallery% 63 Achievement% 33 Wizard Run 0 Options --------- Layout 0 ASCII 0 Keyboard 1 Movement Numpad Keybinds 0 Fullscreen 1 Font 18/Cog Map View 76x50 Zoom Use 0% Tactical HUD 1 Map Filters NONE Filters NONE Steam 1 RUN: a5405917-5469-48c6-9c90-40a1549cc04b